[Event "January 9 Late 2024"]
[Site "https://www.chess.com"]
[Date "2024.01.09"]
[Round "2"]
[White "Mikaelyan, Arman"]
[Black "Grutter, Tim"]
[Result "1-0"]
[Board "81"]
[TimeControl "180+1"]
[WhiteFideId "13304852"]
[BlackFideId "1057472"]
[WhiteElo "2816"]
[BlackElo "2555"]
[WhiteTeam "ARM"]
[BlackTeam "NED"]
[WhiteClock "0:00:05"]
[BlackClock "0:00:00"]

1. d4 {[%clk 0:03:00]}  Nf6 {[%clk 0:02:58]} 2. c4 {[%clk 0:03:00]}  e6 {[%clk 0:02:58]} 3. Nf3 {[%clk 0:02:59]}  d5 {[%clk 0:02:57]} 4. Nc3 {[%clk 0:03:00]}  Be7 {[%clk 0:02:56]} 5. Bf4 {[%clk 0:02:58]}  O-O {[%clk 0:02:55]} 6. e3 {[%clk 0:02:59]}  Nbd7 {[%clk 0:02:51]} 7. cxd5 {[%clk 0:02:57]}  Nxd5 {[%clk 0:02:46]} 8. Nxd5 {[%clk 0:02:57]}  exd5 {[%clk 0:02:46]} 9. Bd3 {[%clk 0:02:54]}  c6 {[%clk 0:02:46]} 10. O-O {[%clk 0:02:54]}  Nf6 {[%clk 0:02:44]} 11. Ne5 {[%clk 0:02:47]}  Be6 {[%clk 0:02:40]} 12. Qc2 {[%clk 0:02:38]}  h6 {[%clk 0:02:38]} 13. Rab1 {[%clk 0:02:36]}  Nd7 {[%clk 0:02:37]} 14. b4 {[%clk 0:02:31]}  a6 {[%clk 0:02:33]} 15. a4 {[%clk 0:02:30]}  Rc8 {[%clk 0:02:32]} 16. Qe2 {[%clk 0:02:19]}  Nxe5 {[%clk 0:02:26]} 17. Bxe5 {[%clk 0:02:20]}  Qd7 {[%clk 0:02:22]} 18. Rfc1 {[%clk 0:02:10]}  Bf5 {[%clk 0:02:18]} 19. h3 {[%clk 0:02:07]}  Bxd3 {[%clk 0:02:18]} 20. Qxd3 {[%clk 0:02:08]}  Bd6 {[%clk 0:02:06]} 21. Bxd6 {[%clk 0:02:00]}  Qxd6 {[%clk 0:02:07]} 22. b5 {[%clk 0:02:00]}  axb5 {[%clk 0:02:06]} 23. axb5 {[%clk 0:02:01]}  c5 {[%clk 0:02:07]} 24. dxc5 {[%clk 0:01:57]}  Rxc5 {[%clk 0:02:07]} 25. Rxc5 {[%clk 0:01:24]}  Qxc5 {[%clk 0:02:07]} 26. b6 {[%clk 0:01:24]}  Rc8 {[%clk 0:02:00]} 27. Rb5 {[%clk 0:01:12]}  Qd6 {[%clk 0:01:36]} 28. g3 {[%clk 0:01:02]}  Rc5 {[%clk 0:01:35]} 29. Qa3 {[%clk 0:00:51]}  Rc6 {[%clk 0:01:26]} 30. Qa8+ {[%clk 0:00:42]}  Kh7 {[%clk 0:01:26]} 31. Qxb7 {[%clk 0:00:43]}  Qe6 {[%clk 0:01:12]} 32. Rb1 {[%clk 0:00:31]}  Rc2 {[%clk 0:01:03]} 33. Qa6 {[%clk 0:00:31]}  Qf5 {[%clk 0:00:43]} 34. Rf1 {[%clk 0:00:31]}  Rb2 {[%clk 0:00:38]} 35. b7 {[%clk 0:00:23]}  Qd7 {[%clk 0:00:32]} 36. Rd1 {[%clk 0:00:18]}  Rxb7 {[%clk 0:00:24]} 37. Qd3+ {[%clk 0:00:18]}  g6 {[%clk 0:00:20]} 38. Qxd5 {[%clk 0:00:18]}  Qxd5 {[%clk 0:00:17]} 39. Rxd5 {[%clk 0:00:19]}  Kg7 {[%clk 0:00:17]} 40. Kg2 {[%clk 0:00:20]}  Kf6 {[%clk 0:00:16]} 41. h4 {[%clk 0:00:20]}  h5 {[%clk 0:00:16]} 42. Kf3 {[%clk 0:00:17]}  Rb4 {[%clk 0:00:16]} 43. Rd6+ {[%clk 0:00:17]}  Ke7 {[%clk 0:00:16]} 44. Ra6 {[%clk 0:00:17]}  Rc4 {[%clk 0:00:16]} 45. e4 {[%clk 0:00:17]}  Rc2 {[%clk 0:00:15]} 46. Ke3 {[%clk 0:00:18]}  Rb2 {[%clk 0:00:15]} 47. f3 {[%clk 0:00:17]}  Rg2 {[%clk 0:00:12]} 48. Kf4 {[%clk 0:00:17]}  Rf2 {[%clk 0:00:11]} 49. Ra3 {[%clk 0:00:15]}  Rf1 {[%clk 0:00:10]} 50. Kg5 {[%clk 0:00:14]}  Rb1 {[%clk 0:00:10]} 51. f4 {[%clk 0:00:14]}  Kf8 {[%clk 0:00:05]} 52. Kh6 {[%clk 0:00:13]}  Rb5 {[%clk 0:00:04]} 53. Ra8+ {[%clk 0:00:12]}  Ke7 {[%clk 0:00:04]} 54. Kg7 {[%clk 0:00:11]}  Rb3 {[%clk 0:00:01]} 55. Ra7+ {[%clk 0:00:11]}  Ke8 {[%clk 0:00:01]} 56. Rxf7 {[%clk 0:00:10]}  Rxg3 {[%clk 0:00:02]} 57. Rf6 {[%clk 0:00:07]}  Rg4 {[%clk 0:00:02]} 58. e5 {[%clk 0:00:05]}  Rxh4 {[%clk 0:00:01]} 59. Kxg6 {[%clk 0:00:04]}  Rh1 {[%clk 0:00:02]} 60. Kf5 {[%clk 0:00:04]}  h4 {[%clk 0:00:02]} 61. Rh6 {[%clk 0:00:05]}  h3 {[%clk 0:00:02]} 62. Ke6 {[%clk 0:00:06]}  Kf8 {[%clk 0:00:02]} 63. f5 {[%clk 0:00:06]}  Kg7 {[%clk 0:00:03]} 64. Rh4 {[%clk 0:00:06]}  h2 {[%clk 0:00:03]} 65. f6+ {[%clk 0:00:06]}  Kg6 {[%clk 0:00:03]} 66. f7 {[%clk 0:00:06]}  Kg5 {[%clk 0:00:00]} 67. Rh8 {[%clk 0:00:05]} 1-0

[Event "January 9 Late 2024"]
[Site "https://www.chess.com"]
[Date "2024.01.09"]
[Round "2"]
[White "Cabarkapa, Novak"]
[Black "Lin, Bryan Enming"]
[Result "0-1"]
[Board "83"]
[TimeControl "180+1"]
[WhiteFideId "943746"]
[BlackFideId "30987121"]
[WhiteElo "2811"]
[BlackElo "2552"]
[WhiteTeam "SRB"]
[BlackTeam "USA"]
[WhiteClock "0:00:06"]
[BlackClock "0:01:29"]

1. e4 {[%clk 0:03:00]}  e5 {[%clk 0:02:59]} 2. Nf3 {[%clk 0:03:00]}  Nc6 {[%clk 0:02:58]} 3. Bc4 {[%clk 0:03:00]}  Nf6 {[%clk 0:02:57]} 4. d3 {[%clk 0:03:01]}  Bc5 {[%clk 0:02:57]} 5. c3 {[%clk 0:03:01]}  d6 {[%clk 0:02:57]} 6. Bb3 {[%clk 0:03:02]}  h6 {[%clk 0:02:57]} 7. h3 {[%clk 0:03:02]}  O-O {[%clk 0:02:56]} 8. g4 {[%clk 0:03:02]}  Be6 {[%clk 0:02:53]} 9. g5 {[%clk 0:03:02]}  hxg5 {[%clk 0:02:52]} 10. Bxg5 {[%clk 0:03:03]}  d5 {[%clk 0:02:45]} 11. Nbd2 {[%clk 0:02:57]}  Be7 {[%clk 0:02:42]} 12. Rg1 {[%clk 0:02:45]}  Qd6 {[%clk 0:02:30]} 13. Nh4 {[%clk 0:02:22]}  dxe4 {[%clk 0:02:22]} 14. Bxf6 {[%clk 0:02:14]}  Bxf6 {[%clk 0:02:19]} 15. Nxe4 {[%clk 0:02:12]}  Qe7 {[%clk 0:02:18]} 16. Bxe6 {[%clk 0:01:54]}  Qxe6 {[%clk 0:02:15]} 17. Qg4 {[%clk 0:01:44]}  Qxg4 {[%clk 0:02:08]} 18. Nxf6+ {[%clk 0:01:43]}  gxf6 {[%clk 0:02:09]} 19. hxg4 {[%clk 0:01:42]}  Kg7 {[%clk 0:02:04]} 20. Ke2 {[%clk 0:01:40]}  Rh8 {[%clk 0:02:03]} 21. Nf5+ {[%clk 0:01:40]}  Kg6 {[%clk 0:02:04]} 22. b4 {[%clk 0:01:33]}  a6 {[%clk 0:02:01]} 23. a4 {[%clk 0:01:32]}  b5 {[%clk 0:02:01]} 24. axb5 {[%clk 0:01:28]}  axb5 {[%clk 0:02:02]} 25. Rxa8 {[%clk 0:01:28]}  Rxa8 {[%clk 0:02:02]} 26. Rh1 {[%clk 0:01:28]}  Ra3 {[%clk 0:01:56]} 27. Kd2 {[%clk 0:01:13]}  Kg5 {[%clk 0:01:55]} 28. Ng3 {[%clk 0:00:48]}  Kf4 {[%clk 0:01:48]} 29. Ne2+ {[%clk 0:00:35]}  Kxg4 {[%clk 0:01:47]} 30. Ke3 {[%clk 0:00:35]}  Kf5 {[%clk 0:01:45]} 31. Rh6 {[%clk 0:00:33]}  Ne7 {[%clk 0:01:43]} 32. Ng3+ {[%clk 0:00:33]}  Ke6 {[%clk 0:01:43]} 33. Kd2 {[%clk 0:00:32]}  Ra2+ {[%clk 0:01:42]} 34. Ke3 {[%clk 0:00:29]}  Nd5+ {[%clk 0:01:42]} 35. Kf3 {[%clk 0:00:29]}  Nxc3 {[%clk 0:01:42]} 36. Nh5 {[%clk 0:00:29]}  Nd5 {[%clk 0:01:43]} 37. Ng7+ {[%clk 0:00:29]}  Ke7 {[%clk 0:01:41]} 38. Nf5+ {[%clk 0:00:29]}  Kd7 {[%clk 0:01:41]} 39. Rh7 {[%clk 0:00:29]}  Rd2 {[%clk 0:01:36]} 40. Ne3 {[%clk 0:00:27]}  Nxb4 {[%clk 0:01:32]} 41. Rxf7+ {[%clk 0:00:27]}  Kc8 {[%clk 0:01:31]} 42. Rxf6 {[%clk 0:00:25]}  Nxd3 {[%clk 0:01:30]} 43. Ke4 {[%clk 0:00:20]}  Nxf2+ {[%clk 0:01:29]} 44. Kxe5 {[%clk 0:00:20]}  Re2 {[%clk 0:01:30]} 45. Kd4 {[%clk 0:00:15]}  Kb7 {[%clk 0:01:30]} 46. Nd5 {[%clk 0:00:12]}  Rd2+ {[%clk 0:01:29]} 47. Ke5 {[%clk 0:00:06]}  Ng4+ {[%clk 0:01:29]} 0-1

[Event "January 9 Late 2024"]
[Site "https://www.chess.com"]
[Date "2024.01.09"]
[Round "2"]
[White "De Boer, Eelke"]
[Black "Velikanov, Alexander"]
[Result "0-1"]
[Board "85"]
[TimeControl "180+1"]
[WhiteFideId "1048120"]
[BlackFideId "2039290"]
[WhiteElo "2547"]
[BlackElo "2800"]
[WhiteTeam "NED"]
[BlackTeam "USA"]
[WhiteClock "0:00:10"]
[BlackClock "0:00:29"]

1. e4 {[%clk 0:02:45]}  c5 {[%clk 0:03:00]} 2. Nf3 {[%clk 0:02:09]}  e6 {[%clk 0:03:01]} 3. d4 {[%clk 0:02:09]}  cxd4 {[%clk 0:03:01]} 4. Nxd4 {[%clk 0:02:10]}  d6 {[%clk 0:02:58]} 5. Nc3 {[%clk 0:02:08]}  a6 {[%clk 0:02:58]} 6. g4 {[%clk 0:02:08]}  b5 {[%clk 0:02:56]} 7. Be3 {[%clk 0:02:05]}  Bb7 {[%clk 0:02:57]} 8. f3 {[%clk 0:02:04]}  Nd7 {[%clk 0:02:57]} 9. Qd2 {[%clk 0:02:02]}  Rc8 {[%clk 0:02:48]} 10. a3 {[%clk 0:01:59]}  Ngf6 {[%clk 0:02:33]} 11. h4 {[%clk 0:01:52]}  Ne5 {[%clk 0:02:25]} 12. Be2 {[%clk 0:01:45]}  Nc4 {[%clk 0:02:19]} 13. Bxc4 {[%clk 0:01:45]}  Rxc4 {[%clk 0:02:20]} 14. h5 {[%clk 0:01:19]}  h6 {[%clk 0:02:15]} 15. g5 {[%clk 0:01:05]}  hxg5 {[%clk 0:02:13]} 16. Bxg5 {[%clk 0:01:06]}  Be7 {[%clk 0:02:11]} 17. h6 {[%clk 0:01:06]}  gxh6 {[%clk 0:01:09]} 18. Rxh6 {[%clk 0:01:07]}  Rg8 {[%clk 0:01:07]} 19. Be3 {[%clk 0:01:01]}  d5 {[%clk 0:01:00]} 20. e5 {[%clk 0:00:57]}  Nd7 {[%clk 0:00:54]} 21. f4 {[%clk 0:00:50]}  b4 {[%clk 0:00:53]} 22. axb4 {[%clk 0:00:48]}  Bxb4 {[%clk 0:00:53]} 23. Nxe6 {[%clk 0:00:24]}  fxe6 {[%clk 0:00:44]} 24. Rxe6+ {[%clk 0:00:25]}  Kf7 {[%clk 0:00:44]} 25. f5 {[%clk 0:00:25]}  Qh4+ {[%clk 0:00:37]} 26. Bf2 {[%clk 0:00:16]}  Rg1+ {[%clk 0:00:35]} 27. Ke2 {[%clk 0:00:16]}  Qg4+ {[%clk 0:00:35]} 28. Ke3 {[%clk 0:00:11]}  Bc5+ {[%clk 0:00:34]} 29. Kd3 {[%clk 0:00:11]}  Qxf5+ {[%clk 0:00:34]} 30. Ke2 {[%clk 0:00:10]}  Qg4+ {[%clk 0:00:29]} 0-1

[Event "January 9 Late 2024"]
[Site "https://www.chess.com"]
[Date "2024.01.09"]
[Round "2"]
[White "Badmatsyrenov, Oleg"]
[Black "Tao, Sihan"]
[Result "1-0"]
[Board "87"]
[TimeControl "180+1"]
[WhiteFideId "24115762"]
[BlackFideId "30982677"]
[WhiteElo "2785"]
[BlackElo "2499"]
[WhiteTeam "FID"]
[BlackTeam "USA"]
[WhiteClock "0:00:36"]
[BlackClock "0:00:10"]

1. e4 {[%clk 0:02:49]}  c5 {[%clk 0:02:57]} 2. Nf3 {[%clk 0:02:49]}  d6 {[%clk 0:02:56]} 3. d4 {[%clk 0:02:50]}  cxd4 {[%clk 0:02:56]} 4. Nxd4 {[%clk 0:02:51]}  Nf6 {[%clk 0:02:55]} 5. Nc3 {[%clk 0:02:50]}  Nc6 {[%clk 0:02:54]} 6. Bg5 {[%clk 0:02:49]}  e6 {[%clk 0:02:54]} 7. Qd2 {[%clk 0:02:46]}  a6 {[%clk 0:02:53]} 8. O-O-O {[%clk 0:02:46]}  Bd7 {[%clk 0:02:53]} 9. f3 {[%clk 0:02:46]}  Nxd4 {[%clk 0:02:52]} 10. Qxd4 {[%clk 0:02:46]}  Be7 {[%clk 0:02:52]} 11. Qd2 {[%clk 0:02:30]}  Qc7 {[%clk 0:02:41]} 12. Kb1 {[%clk 0:02:19]}  Bc6 {[%clk 0:02:27]} 13. Bd3 {[%clk 0:02:17]}  d5 {[%clk 0:02:23]} 14. e5 {[%clk 0:02:05]}  Nd7 {[%clk 0:02:06]} 15. Bxe7 {[%clk 0:02:05]}  Kxe7 {[%clk 0:02:06]} 16. Qg5+ {[%clk 0:02:03]}  Kf8 {[%clk 0:02:06]} 17. f4 {[%clk 0:02:03]}  h6 {[%clk 0:01:46]} 18. Qg4 {[%clk 0:02:00]}  Nc5 {[%clk 0:01:36]} 19. Ne2 {[%clk 0:01:56]}  Nxd3 {[%clk 0:01:28]} 20. Rxd3 {[%clk 0:01:53]}  Bb5 {[%clk 0:01:19]} 21. Rg3 {[%clk 0:01:33]}  g6 {[%clk 0:00:44]} 22. Nd4 {[%clk 0:01:32]}  Rc8 {[%clk 0:00:43]} 23. Rc1 {[%clk 0:01:26]}  Bd7 {[%clk 0:00:41]} 24. h4 {[%clk 0:01:23]}  h5 {[%clk 0:00:40]} 25. Qg5 {[%clk 0:01:21]}  Qd8 {[%clk 0:00:40]} 26. Qf6 {[%clk 0:01:17]}  Qxf6 {[%clk 0:00:40]} 27. exf6 {[%clk 0:01:18]}  Rc4 {[%clk 0:00:39]} 28. Rd3 {[%clk 0:01:13]}  Kg8 {[%clk 0:00:37]} 29. g3 {[%clk 0:01:13]}  Kh7 {[%clk 0:00:36]} 30. Nf3 {[%clk 0:01:13]}  Rc7 {[%clk 0:00:31]} 31. Ng5+ {[%clk 0:01:11]}  Kg8 {[%clk 0:00:29]} 32. b3 {[%clk 0:01:01]}  Bb5 {[%clk 0:00:28]} 33. c4 {[%clk 0:01:00]}  Bc6 {[%clk 0:00:17]} 34. cxd5 {[%clk 0:00:59]}  exd5 {[%clk 0:00:18]} 35. Rxd5 {[%clk 0:00:56]}  Rc8 {[%clk 0:00:17]} 36. Kb2 {[%clk 0:00:52]}  Re8 {[%clk 0:00:16]} 37. Re5 {[%clk 0:00:50]}  Rxe5 {[%clk 0:00:14]} 38. fxe5 {[%clk 0:00:51]}  Kf8 {[%clk 0:00:14]} 39. Rd1 {[%clk 0:00:49]}  Ke8 {[%clk 0:00:15]} 40. Rd6 {[%clk 0:00:49]}  Rf8 {[%clk 0:00:15]} 41. Kc3 {[%clk 0:00:44]}  Bd7 {[%clk 0:00:15]} 42. Kd4 {[%clk 0:00:40]}  Kd8 {[%clk 0:00:10]} 43. e6 {[%clk 0:00:36]} 1-0

[Event "January 9 Late 2024"]
[Site "https://www.chess.com"]
[Date "2024.01.09"]
[Round "2"]
[White "Lopusiewicz, Piotr"]
[Black "Sokolovsky, Yahli"]
[Result "0-1"]
[Board "88"]
[TimeControl "180+1"]
[WhiteFideId "1116029"]
[BlackFideId "2820242"]
[WhiteElo "2486"]
[BlackElo "2778"]
[WhiteTeam "POL"]
[BlackTeam "ISR"]
[WhiteClock "0:00:00"]
[BlackClock "0:00:22"]

1. d4 {[%clk 0:03:00]}  d6 {[%clk 0:02:59]} 2. e4 {[%clk 0:03:00]}  g6 {[%clk 0:02:59]} 3. Nf3 {[%clk 0:03:00]}  Bg7 {[%clk 0:03:00]} 4. Be3 {[%clk 0:03:00]}  a6 {[%clk 0:03:00]} 5. Nc3 {[%clk 0:03:00]}  b5 {[%clk 0:03:01]} 6. h4 {[%clk 0:02:51]}  h6 {[%clk 0:02:55]} 7. Bd3 {[%clk 0:02:48]}  Bb7 {[%clk 0:02:54]} 8. a4 {[%clk 0:02:45]}  b4 {[%clk 0:02:53]} 9. Ne2 {[%clk 0:02:45]}  Nd7 {[%clk 0:02:53]} 10. Ng3 {[%clk 0:02:44]}  e6 {[%clk 0:02:53]} 11. Qd2 {[%clk 0:02:42]}  c5 {[%clk 0:02:52]} 12. c3 {[%clk 0:02:39]}  a5 {[%clk 0:02:48]} 13. Bb5 {[%clk 0:02:35]}  cxd4 {[%clk 0:02:39]} 14. cxd4 {[%clk 0:02:31]}  Nf6 {[%clk 0:02:37]} 15. e5 {[%clk 0:02:16]}  Ng4 {[%clk 0:02:20]} 16. h5 {[%clk 0:01:59]}  g5 {[%clk 0:02:14]} 17. exd6 {[%clk 0:01:42]}  O-O {[%clk 0:02:14]} 18. Nxg5 {[%clk 0:01:22]}  Nxe3 {[%clk 0:02:14]} 19. Qxe3 {[%clk 0:01:21]}  hxg5 {[%clk 0:02:13]} 20. h6 {[%clk 0:01:21]}  Bf6 {[%clk 0:02:14]} 21. Ne4 {[%clk 0:01:13]}  Bxe4 {[%clk 0:02:12]} 22. Qxe4 {[%clk 0:01:12]}  Nb6 {[%clk 0:01:55]} 23. Bd3 {[%clk 0:01:06]}  Re8 {[%clk 0:01:56]} 24. Qh7+ {[%clk 0:00:59]}  Kf8 {[%clk 0:01:56]} 25. Bb5 {[%clk 0:00:59]}  Qxd6 {[%clk 0:01:52]} 26. Bxe8 {[%clk 0:00:58]}  Rxe8 {[%clk 0:01:52]} 27. O-O {[%clk 0:00:57]}  Nd5 {[%clk 0:01:49]} 28. Rac1 {[%clk 0:00:53]}  Nf4 {[%clk 0:01:50]} 29. Qe4 {[%clk 0:00:50]}  Qd5 {[%clk 0:01:50]} 30. Qxd5 {[%clk 0:00:49]}  exd5 {[%clk 0:01:41]} 31. Rc6 {[%clk 0:00:46]}  Bxd4 {[%clk 0:01:41]} 32. Rd1 {[%clk 0:00:40]}  Bxb2 {[%clk 0:01:27]} 33. g3 {[%clk 0:00:38]}  Ne2+ {[%clk 0:01:26]} 34. Kf1 {[%clk 0:00:37]}  d4 {[%clk 0:01:25]} 35. Rd3 {[%clk 0:00:34]}  Bc3 {[%clk 0:01:06]} 36. Rc7 {[%clk 0:00:32]}  g4 {[%clk 0:00:55]} 37. Rc5 {[%clk 0:00:27]}  b3 {[%clk 0:00:52]} 38. Rb5 {[%clk 0:00:16]}  b2 {[%clk 0:00:52]} 39. Kg2 {[%clk 0:00:10]}  Nc1 {[%clk 0:00:44]} 40. Rd1 {[%clk 0:00:08]}  d3 {[%clk 0:00:45]} 41. f3 {[%clk 0:00:08]}  d2 {[%clk 0:00:40]} 42. fxg4 {[%clk 0:00:07]}  Bb4 {[%clk 0:00:34]} 43. h7 {[%clk 0:00:03]}  Kg7 {[%clk 0:00:27]} 44. Rg5+ {[%clk 0:00:03]}  Kf6 {[%clk 0:00:28]} 45. Rf5+ {[%clk 0:00:03]}  Kg6 {[%clk 0:00:28]} 46. Rh1 {[%clk 0:00:01]}  b1=Q {[%clk 0:00:25]} 47. Rhh5 {[%clk 0:00:02]}  Qxf5 {[%clk 0:00:22]} 48. Rxf5 {[%clk 0:00:00]}  d1=Q {[%clk 0:00:22]} 0-1

[Event "January 9 Late 2024"]
[Site "https://www.chess.com"]
[Date "2024.01.10"]
[Round "2"]
[White "Ghasi, Ameet K"]
[Black "Otero Marino, Alain"]
[Result "1/2-1/2"]
[Board "89"]
[TimeControl "180+1"]
[WhiteFideId "409200"]
[BlackFideId "3524876"]
[WhiteElo "2774"]
[BlackElo "2478"]
[WhiteTeam "ENG"]
[BlackTeam "CUB"]
[WhiteClock "0:00:32"]
[BlackClock "0:01:39"]

1. e4 {[%clk 0:03:00]}  e6 {[%clk 0:02:59]} 2. d4 {[%clk 0:02:58]}  d5 {[%clk 0:02:59]} 3. Nd2 {[%clk 0:02:59]}  c5 {[%clk 0:02:59]} 4. exd5 {[%clk 0:02:59]}  Qxd5 {[%clk 0:02:59]} 5. Ngf3 {[%clk 0:02:58]}  cxd4 {[%clk 0:02:59]} 6. Bc4 {[%clk 0:02:59]}  Qd6 {[%clk 0:03:00]} 7. O-O {[%clk 0:02:59]}  Nf6 {[%clk 0:03:00]} 8. Qe2 {[%clk 0:02:58]}  Nc6 {[%clk 0:02:58]} 9. Nb3 {[%clk 0:02:58]}  a6 {[%clk 0:02:55]} 10. Rd1 {[%clk 0:02:55]}  Qc7 {[%clk 0:02:53]} 11. Bg5 {[%clk 0:02:52]}  Be7 {[%clk 0:02:52]} 12. Nbxd4 {[%clk 0:02:50]}  Nxd4 {[%clk 0:02:50]} 13. Nxd4 {[%clk 0:02:50]}  O-O {[%clk 0:02:44]} 14. Bd3 {[%clk 0:02:50]}  Re8 {[%clk 0:02:40]} 15. Qf3 {[%clk 0:02:44]}  Bd7 {[%clk 0:02:39]} 16. c3 {[%clk 0:02:37]}  Rad8 {[%clk 0:02:39]} 17. Re1 {[%clk 0:02:35]}  Qb6 {[%clk 0:02:36]} 18. Re2 {[%clk 0:02:25]}  Bc8 {[%clk 0:02:29]} 19. Rae1 {[%clk 0:02:23]}  Rd5 {[%clk 0:02:28]} 20. Bxf6 {[%clk 0:02:13]}  gxf6 {[%clk 0:02:28]} 21. Qh3 {[%clk 0:01:51]}  f5 {[%clk 0:02:27]} 22. Bxf5 {[%clk 0:01:40]}  exf5 {[%clk 0:02:22]} 23. Rxe7 {[%clk 0:01:36]}  Rxe7 {[%clk 0:02:22]} 24. Rxe7 {[%clk 0:01:37]}  Kf8 {[%clk 0:02:20]} 25. Qe3 {[%clk 0:01:29]}  Be6 {[%clk 0:02:09]} 26. g4 {[%clk 0:00:49]}  Rxd4 {[%clk 0:01:57]} 27. cxd4 {[%clk 0:00:40]}  Kxe7 {[%clk 0:01:52]} 28. gxf5 {[%clk 0:00:40]}  Qxb2 {[%clk 0:01:52]} 29. fxe6 {[%clk 0:00:40]}  Qb1+ {[%clk 0:01:42]} 30. Kg2 {[%clk 0:00:38]}  fxe6 {[%clk 0:01:42]} 31. d5 {[%clk 0:00:30]}  Qg6+ {[%clk 0:01:40]} 32. Kf1 {[%clk 0:00:30]}  Qb1+ {[%clk 0:01:39]} 33. Kg2 {[%clk 0:00:31]}  Qg6+ {[%clk 0:01:39]} 34. Kf1 {[%clk 0:00:31]}  Qb1+ {[%clk 0:01:39]} 35. Kg2 {[%clk 0:00:32]} 1/2-1/2

[Event "January 9 Late 2024"]
[Site "https://www.chess.com"]
[Date "2024.01.09"]
[Round "2"]
[White "Bochnicka, Vladimir"]
[Black "Krzyzanowski, Marcin"]
[Result "0-1"]
[Board "90"]
[TimeControl "180+1"]
[WhiteFideId "14943450"]
[BlackFideId "1132199"]
[WhiteElo "2468"]
[BlackElo "2772"]
[WhiteTeam "SVK"]
[BlackTeam "POL"]
[WhiteClock "0:00:08"]
[BlackClock "0:01:14"]

1. e4 {[%clk 0:03:00]}  c6 {[%clk 0:02:58]} 2. d4 {[%clk 0:03:01]}  d5 {[%clk 0:02:59]} 3. e5 {[%clk 0:03:01]}  Bf5 {[%clk 0:02:59]} 4. h4 {[%clk 0:03:02]}  h5 {[%clk 0:02:58]} 5. c4 {[%clk 0:03:02]}  e6 {[%clk 0:02:58]} 6. Nc3 {[%clk 0:03:02]}  Nd7 {[%clk 0:02:56]} 7. cxd5 {[%clk 0:03:02]}  cxd5 {[%clk 0:02:54]} 8. Bd3 {[%clk 0:03:03]}  Ne7 {[%clk 0:02:52]} 9. Bg5 {[%clk 0:03:00]}  Qa5 {[%clk 0:02:45]} 10. Bxe7 {[%clk 0:02:56]}  Bxe7 {[%clk 0:02:46]} 11. Bxf5 {[%clk 0:02:55]}  exf5 {[%clk 0:02:47]} 12. Nf3 {[%clk 0:02:54]}  Bb4 {[%clk 0:02:46]} 13. O-O {[%clk 0:02:28]}  Bxc3 {[%clk 0:02:46]} 14. bxc3 {[%clk 0:02:28]}  Rc8 {[%clk 0:02:43]} 15. Re1 {[%clk 0:02:24]}  Nf8 {[%clk 0:02:41]} 16. Rb1 {[%clk 0:02:02]}  b6 {[%clk 0:02:40]} 17. e6 {[%clk 0:01:11]}  Nxe6 {[%clk 0:02:26]} 18. Ng5 {[%clk 0:01:10]}  Rc6 {[%clk 0:02:25]} 19. c4 {[%clk 0:01:06]}  O-O {[%clk 0:02:09]} 20. Rb5 {[%clk 0:00:53]}  Qa6 {[%clk 0:01:55]} 21. cxd5 {[%clk 0:00:20]}  Qxb5 {[%clk 0:01:52]} 22. dxc6 {[%clk 0:00:17]}  Nxg5 {[%clk 0:01:50]} 23. hxg5 {[%clk 0:00:16]}  Qxc6 {[%clk 0:01:49]} 24. Qxh5 {[%clk 0:00:16]}  Rd8 {[%clk 0:01:46]} 25. Re3 {[%clk 0:00:16]}  Rxd4 {[%clk 0:01:31]} 26. Rh3 {[%clk 0:00:15]}  Qc1+ {[%clk 0:01:32]} 27. Kh2 {[%clk 0:00:15]}  Qf4+ {[%clk 0:01:33]} 28. Kg1 {[%clk 0:00:13]}  Kf8 {[%clk 0:01:31]} 29. Qh8+ {[%clk 0:00:11]}  Ke7 {[%clk 0:01:32]} 30. Re3+ {[%clk 0:00:11]}  Re4 {[%clk 0:01:13]} 31. Rxe4+ {[%clk 0:00:11]}  Qxe4 {[%clk 0:01:12]} 32. Qxg7 {[%clk 0:00:11]}  Qe1+ {[%clk 0:01:10]} 33. Kh2 {[%clk 0:00:12]}  Qxf2 {[%clk 0:01:11]} 34. Qf6+ {[%clk 0:00:09]}  Ke8 {[%clk 0:01:11]} 35. Qh8+ {[%clk 0:00:09]}  Kd7 {[%clk 0:01:12]} 36. Qf6 {[%clk 0:00:08]}  Qh4+ {[%clk 0:01:10]} 37. Kg1 {[%clk 0:00:08]}  Qe1+ {[%clk 0:01:11]} 38. Kh2 {[%clk 0:00:08]}  Qe6 {[%clk 0:01:12]} 39. Qd4+ {[%clk 0:00:08]}  Qd6+ {[%clk 0:01:12]} 40. Qxd6+ {[%clk 0:00:08]}  Kxd6 {[%clk 0:01:13]} 41. Kg3 {[%clk 0:00:08]}  Ke5 {[%clk 0:01:14]} 42. Kh4 {[%clk 0:00:09]}  b5 {[%clk 0:01:13]} 43. Kh5 {[%clk 0:00:09]}  b4 {[%clk 0:01:13]} 44. Kh6 {[%clk 0:00:09]}  a5 {[%clk 0:01:12]} 45. Kg7 {[%clk 0:00:10]}  Ke6 {[%clk 0:01:12]} 46. g6 {[%clk 0:00:08]}  fxg6 {[%clk 0:01:13]} 47. Kxg6 {[%clk 0:00:09]}  a4 {[%clk 0:01:13]} 48. Kg5 {[%clk 0:00:08]}  b3 {[%clk 0:01:14]} 0-1

[Event "January 9 Late 2024"]
[Site "https://www.chess.com"]
[Date "2024.01.09"]
[Round "2"]
[White "Bordi, Kevin"]
[Black "Garrido Diaz, Jose Antonio"]
[Result "1-0"]
[Board "91"]
[TimeControl "180+1"]
[WhiteFideId "621862"]
[BlackFideId "24516252"]
[WhiteElo "2764"]
[BlackElo "2455"]
[WhiteTeam "MNC"]
[BlackTeam "ESP"]
[WhiteClock "0:00:17"]
[BlackClock "0:00:17"]

1. e4 {[%clk 0:03:00]}  c5 {[%clk 0:02:53]} 2. Nf3 {[%clk 0:03:01]}  d6 {[%clk 0:02:53]} 3. d4 {[%clk 0:03:01]}  cxd4 {[%clk 0:02:54]} 4. Nxd4 {[%clk 0:03:01]}  Nf6 {[%clk 0:02:54]} 5. Nc3 {[%clk 0:03:01]}  g6 {[%clk 0:02:54]} 6. g4 {[%clk 0:03:01]}  e5 {[%clk 0:02:45]} 7. Nb3 {[%clk 0:02:49]}  Bxg4 {[%clk 0:02:44]} 8. f3 {[%clk 0:02:48]}  Be6 {[%clk 0:02:44]} 9. Bg5 {[%clk 0:02:47]}  Be7 {[%clk 0:02:45]} 10. Qd2 {[%clk 0:02:44]}  Nc6 {[%clk 0:02:35]} 11. O-O-O {[%clk 0:02:43]}  O-O {[%clk 0:02:15]} 12. h4 {[%clk 0:02:39]}  Nh5 {[%clk 0:02:12]} 13. Kb1 {[%clk 0:02:25]}  Qc7 {[%clk 0:02:03]} 14. Bh3 {[%clk 0:02:07]}  a6 {[%clk 0:01:58]} 15. Bg4 {[%clk 0:02:06]}  Nf4 {[%clk 0:01:46]} 16. Bxf4 {[%clk 0:02:03]}  exf4 {[%clk 0:01:46]} 17. Qxf4 {[%clk 0:01:53]}  Ne5 {[%clk 0:01:45]} 18. h5 {[%clk 0:01:43]}  g5 {[%clk 0:01:27]} 19. Qg3 {[%clk 0:01:40]}  h6 {[%clk 0:01:21]} 20. Nd4 {[%clk 0:01:31]}  Qc4 {[%clk 0:01:10]} 21. Nf5 {[%clk 0:01:08]}  Bxf5 {[%clk 0:01:06]} 22. Bxf5 {[%clk 0:01:08]}  Bf6 {[%clk 0:01:04]} 23. f4 {[%clk 0:01:05]}  Nc6 {[%clk 0:01:01]} 24. Nd5 {[%clk 0:00:54]}  Bd8 {[%clk 0:00:54]} 25. Rhg1 {[%clk 0:00:36]}  Nb4 {[%clk 0:00:54]} 26. Nxb4 {[%clk 0:00:28]}  Qxb4 {[%clk 0:00:54]} 27. a3 {[%clk 0:00:27]}  Qb6 {[%clk 0:00:49]} 28. fxg5 {[%clk 0:00:26]}  Bxg5 {[%clk 0:00:47]} 29. Rxd6 {[%clk 0:00:25]}  Qc5 {[%clk 0:00:17]} 30. Qxg5+ {[%clk 0:00:17]} 1-0